[Event "Italian-ch Semifinal 2022"]
[Site "Acqui Terme"]
[Date "2022.06.18"]
[Round "8.6"]
[White "Maione, Melissa"]
[Black "Corvi, Marco"]
[Result "0-1"]
[ECO "B45"]
[WhiteElo "1926"]
[BlackElo "2318"]
[Annotator "TA"]
[PlyCount "114"]
[EventDate "2022.06.15"]
[EventType "swiss"]
[EventCountry "ITA"]
[SourceTitle "playchess.com"]
[Source "ChessBase"]
[SourceQuality "1"]
[TimeControl "40/5400+30:1800+30"]

{[%evp 16,114,19,22,84,72,64,71,75,73,46,65,83,-43,-27,-347,-337,-389,-396,-427,-347,-357,-339,-310,-285,-275,-253,-232,-126,-132,-17,-16,-15,-24,-14,-51,-62,-117,20,-76,-17,-37,-37,-37,-36,-36,0,-218,-231,-335,-331,-319,-327,-395,-339,-452,-426,-460,-458,-464,-452,-527,-518,-493,-500,-627,-586,-729,-676,-585,-495,-615,-529,-643,-643,-632,-578,-549,-540,-640,-676,-689,-665,-675,-667,-617,-605,-1777,-1434,-1471,-880,-29972,-29973,-29973,-29973,-29975,-29976,-29976,-29976,-29975,-29971]} 1. e4 {[%emt 0:00:03]} c5 {[%emt 0:02:05]} 2. Nf3 {[%emt 0:00:09]} e6 {[%emt 0:00:08]} 3. d4 {[%emt 0:00:10]} cxd4 {[%emt 0:00:05]} 4. Nxd4 {[%emt 0:00:08]} Nf6 {[%emt 0:00:05]} 5. Nc3 {[%emt 0:00:09]} Nc6 {[%emt 0:00:04]} 6. Nxc6 {[%emt 0:00:16]} bxc6 {[%emt 0:00:04]} 7. e5 {[%emt 0:00:16]} Nd5 {[%emt 0:00:04]} 8. Ne4 {[%emt 0:00:26]} Qc7 {[%emt 0:06:25]} 9. f4 {[%emt 0:00:48]} Rb8 {[%emt 0:00:33] B45: Sicilian Four Knights.} (9... Qa5+ $11 10. c3 Be7) 10. c4 $1 $16 {[%emt 0:17:46]} Bb4+ {[%emt 0:00:58]} 11. Ke2 $1 {[%emt 0:04:06]} (11. Kf2 f5 12. exf6 (12. cxd5 fxe4 13. d6 Qa5 $11) 12... Nxf6 13. Nxf6+ gxf6 $11) 11... O-O {[%emt 0:00:31][%cal Of7f6] White is better.} 12. a3 {[%emt 0:08:06]} Be7 {[%emt 0:00:30]} 13. cxd5 {[%emt 0:05:52]} cxd5 {[%emt 0:00:03]} 14. Nc3 {[%emt 0:03:13]} (14. Nd6 $1 $16) 14... f6 $15 {[%emt 0:02:57] [#]} 15. Nxd5 $146 {[%emt 0:08:25][%mdl 8192]} ({Predecessor:} 15. Be3 Rxb2+ 16. Bd2 Qxc3 {0-1 (16) Eynullayev,A (2223)-Yoo,C (2500) Chess.com INT 2022}) 15... exd5 $19 {[%emt 0:01:24]} 16. Qxd5+ {[%emt 0:00:07]} Kh8 {[%emt 0:00:16]} 17. Kd1 {[%emt 0:01:12]} fxe5 {[%emt 0:01:18]} 18. Qxe5 {[%emt 0:04:54]} d6 $1 {[%emt 0:03:08]} 19. Qc3 {[%emt 0:00:24]} Qb7 {[%emt 0:04:35]} 20. Qf3 {[%emt 0:03:51] Against Bg4} d5 {[%emt 0:02:53]} 21. Bd3 {[%emt 0:02:31]} Qb3+ {[%emt 0:22:45]} (21... Bd7 $1 $19 {Hoping for ...Qb6.} 22. Qh5 Ba4+ 23. Ke2 g6) 22. Bc2 $17 {[%emt 0:01:58]} Qxf3+ {[%emt 0:00:05]} (22... Qb6 $17 {Threatens to win with ...Qd4+.} 23. Bd2 (23. Qh5 $2 g6 $19) 23... Qxb2) 23. gxf3 $11 {[%emt 0:00:07]} Bh3 {[%emt 0:12:02]} 24. Re1 {[%emt 0:06:00]} Bf6 {[%emt 0:02:16][%mdl 1024] Black has compensation.} 25. Rb1 {[%emt 0:03:52]} Bg2 $36 {[%emt 0:19:12][%mdl 2048] Black fights for an advantage.} 26. Re3 {[%emt 0:04:30]} ({White should try} 26. Be3 $15) 26... Rfe8 {[%emt 0:00:31]} (26... d4 $17 27. Rd3 Rb5) 27. Kd2 {[%emt 0:10:52] [#]} (27. b4 $11 {remains equal.}) 27... Rec8 {[%emt 0:03:05] Black is more active.} ({Black should play} 27... Bd4 $1 $17 {[%cal Rd4e3]} 28. Rxe8+ Rxe8) 28. Bf5 {[%emt 0:00:43]} Rc4 {[%emt 0:00:28]} 29. Ke2 {[%emt 0:01:48]} Rxf4 {[%emt 0:00:38]} 30. Bg4 {[%emt 0:01:47]} Rc4 {[%emt 0:03:32]} (30... h5 $5 31. Bxh5 Rh4 $15) 31. Bf5 $2 {[%emt 0:02:25] [#] White is on the road to losing.} (31. Rd3 $11) 31... Bg5 $1 $19 {[%emt 0:01:02]} 32. b3 {[%emt 0:02:05]} (32. Bd3 $142 Rc6 33. Kf2) 32... Bxe3 {[%emt 0:00:59]} 33. Bxe3 {[%emt 0:00:42]} Rc3 {[%emt 0:00:33]} 34. Bxa7 {[%emt 0:03:45]} Rbxb3 {[%emt 0:03:58]} 35. Rxb3 {[%emt 0:00:45] White wants to mate with Rb8+.} Bxf3+ {[%emt 0:00:22]} (35... Rxb3 $2 {is the wrong capture.} 36. Bg4 $19) 36. Kf2 {[%emt 0:00:20] Intending Rb8+ and mate.} Rxb3 {[%emt 0:00:06][%mdl 4096] Endgame KRB-KB} 37. Bc5 {[%emt 0:00:15]} Be4 {[%emt 0:00:58]} 38. Bg4 {[%emt 0:00:54]} Rb2+ {[%emt 0:00:39]} 39. Kg3 {[%emt 0:00:14]} Rg2+ {[%emt 0:00:48]} 40. Kh3 {[%emt 0:00:00]} Rc2 {[%emt 0:00:00]} 41. Bb4 {[%emt 0:01:13]} d4 {[%emt 0:00:58]} 42. Kg3 {[%emt 0:00:33]} d3 {[%emt 0:00:27]} 43. h3 {[%emt 0:01:22]} Bg6 {[%emt 0:01:48]} 44. Kf4 {[%emt 0:00:23]} h5 {[%emt 0:01:20][%cal Bh7h5,Bh5h4][%mdl 32]} 45. Bf3 {[%emt 0:00:41]} Rf2 {[%emt 0:02:19] ...d2 is the strong threat.} 46. Kg3 {[%emt 0:00:32]} Rb2 {[%emt 0:00:23]} 47. Kf4 {[%emt 0:00:23]} h4 {[%emt 0:06:56]} 48. Bg4 {[%emt 0:03:15]} d2 {[%emt 0:02:52]} 49. Ke3 {[%emt 0:00:53] [#]} Bf5 $1 {[%emt 0:01:51][%mdl 512]} 50. Bd1 {[%emt 0:01:33] Against Rb3+} (50. Be2 Bxh3) 50... Bxh3 {[%emt 0:00:52] Strongly threatening ...Bg2.} 51. Be7 {[%emt 0:01:34]} Be6 {[%emt 0:01:46] ( -> ...h3)} 52. Bxh4 {[%emt 0:00:32]} Bb3 {[%emt 0:00:20]} 53. Ke2 {[%emt 0:02:42]} Bxd1+ {[%emt 0:00:10] Black mates.} 54. Kxd1 {[%emt 0:00:09]} Ra2 {[%emt 0:00:07]} 55. Be7 {[%emt 0:00:32]} Kh7 {[%emt 0:00:05]} 56. Bb4 {[%emt 0:00:14]} Kg6 {[%emt 0:00:06]} 57. Bxd2 {[%emt 0:00:28]} Rxa3 {[%emt 0:00:04] Weighted Error Value: White=0.58/Black=0.34} 0-1

[Event "Italian-ch Semifinal 2022"]
[Site "Acqui Terme"]
[Date "2022.06.18"]
[Round "8.7"]
[White "Bettalli, Francesco"]
[Black "Caprino, Marco"]
[Result "1/2-1/2"]
[ECO "A43"]
[WhiteElo "2304"]
[BlackElo "2071"]
[Annotator "TA"]
[PlyCount "93"]
[EventDate "2022.06.15"]
[EventType "swiss"]
[EventCountry "ITA"]
[SourceTitle "playchess.com"]
[Source "ChessBase"]
[SourceQuality "1"]
[TimeControl "40/5400+30:1800+30"]

{[%evp 17,93,20,39,0,42,47,57,0,-4,-5,0,0,0,0,13,3,43,41,36,36,45,39,42,42,47,41,37,26,38,26,33,24,24,0,-1,-8,0,-32,-19,-11,0,-91,-88,-72,-13,-230,-82,-214,6,-20,0,-72,7,0,38,-54,44,28,53,44,94,50,137,24,28,0,0,0,0,0,0,0,0,-8,-8,-8,-8,-8]} 1. d4 {[%emt 0:00:01]} c5 {[%emt 0:00:19]} 2. d5 {[%emt 0:00:07]} g6 {[%emt 0:00:11]} 3. e4 {[%emt 0:00:28]} Bg7 {[%emt 0:00:06]} 4. Nf3 {[%emt 0:00:54][%cal Bg1f3,Bf3d2,Bd2c4][%mdl 32]} d6 {[%emt 0:00:17]} 5. Nc3 {[%emt 0:00:23]} Nf6 {[%emt 0:00:07]} 6. Be2 {[%emt 0:00:13]} O-O {[%emt 0:00:13]} 7. O-O {[%emt 0:00:06]} Na6 {[%emt 0:00:12]} 8. Nd2 {[%emt 0:01:39]} Nc7 {[%emt 0:00:26]} 9. a4 {[%emt 0:00:11]} b6 {[%emt 0:01:09]} 10. Re1 {[%emt 0:01:21] [#] A43: Schmid Benoni.} e5 $146 {[%emt 0:04:05]} ({Predecessor:} 10... e6 11. Nc4 exd5 12. exd5 Ba6 13. Bf4 Bxc4 14. Bxc4 Nh5 15. Bd2 Be5 16. g3 Re8 17. Kg2 f5 {½-½ (74) Ibragimov,I (2602)-Zakharevich,I (2532) Novgorod 1999}) 11. Nc4 {[%emt 0:03:13]} Ba6 {[%emt 0:06:50]} 12. f4 {[%emt 0:12:00]} (12. Bd3 $14) 12... exf4 {[%emt 0:00:54]} 13. Bxf4 {[%emt 0:00:06]} Nh5 {[%emt 0:00:12]} 14. Bxh5 {[%emt 0:01:24] aiming for Be2.} Bxc4 {[%emt 0:02:03]} 15. Bf3 {[%emt 0:02:07]} Bd4+ {[%emt 0:01:13]} 16. Kh1 {[%emt 0:05:33]} Qf6 {[%emt 0:02:09]} 17. Qd2 {[%emt 0:01:22][%cal Oe4e5]} Be5 {[%emt 0:00:21]} 18. Bg5 {[%emt 0:02:50]} Qh8 {[%emt 0:00:51]} 19. Nd1 {[%emt 0:00:47]} h5 {[%emt 0:07:22]} 20. c3 {[%emt 0:02:00]} f6 {[%emt 0:01:52]} 21. Be3 {[%emt 0:05:10]} Qh7 {[%emt 0:06:39]} 22. Bf2 {[%emt 0:05:23]} Ba6 {[%emt 0:06:42]} 23. Ne3 {[%emt 0:03:47]} Qh6 {[%emt 0:07:43]} 24. Qd1 {[%emt 0:03:45]} Rae8 {[%emt 0:02:21]} 25. a5 {[%emt 0:05:21]} b5 {[%emt 0:03:10]} 26. Rc1 {[%emt 0:00:37]} Bc8 {[%emt 0:02:28]} 27. b4 {[%emt 0:00:59]} c4 {[%emt 0:00:08]} ({Resist} 27... Qf4 28. g3 Qh6 29. Ng2 $14) 28. Qd2 {[%emt 0:02:11][%cal Oe3c4]} g5 {[%emt 0:04:03]} 29. Nc2 {[%emt 0:01:35]} (29. g3 $1 $11) 29... a6 $17 {[%emt 0:00:24]} 30. Bd4 {[%emt 0:02:36]} Kg7 {[%emt 0:00:56]} (30... Bf4 $1 $17 {[%cal Rf4d2]} 31. Be3 Bxe3 32. Nxe3 g4) 31. Qf2 {[%emt 0:03:14]} (31. g3 $11 {and White has nothing to worry.}) 31... Re7 {[%emt 0:00:23]} (31... g4 $19 {is more deadly.} 32. Rg1 gxf3 33. gxf3+ Kh8) 32. Rf1 {[%emt 0:01:24]} (32. g3 $17 {was called for.}) 32... Qg6 $2 {[%emt 0:03:15]} (32... g4 $19 33. Be2 Qg6 34. Bxe5 Rxe5) 33. Rce1 {[%emt 0:01:08]} Ref7 {[%emt 0:01:08]} 34. Qd2 {[%emt 0:02:27]} (34. Bd1 $11) 34... Bd7 {[%emt 0:05:32]} (34... g4 $17 35. Bd1 f5) 35. Bd1 {[%emt 0:00:44]} Kh7 {[%emt 0:01:20]} 36. Be3 {[%emt 0:05:31]} (36. Kg1 $14) 36... Ne8 {[%emt 0:00:16]} (36... f5 $15 37. Bb6 fxe4 $1 38. Rxf7+ Qxf7) 37. Nd4 $14 {[%emt 0:00:23]} Ng7 {[%emt 0:00:12]} 38. Nf3 {[%emt 0:00:44]} Kg8 {[%emt 0:07:26]} (38... h4 $14) 39. Kg1 {[%emt 0:02:33]} g4 {[%emt 0:00:53] [#]} ({Black should play} 39... h4 $1 $14) 40. Nxe5 {[%emt 0:00:00]} (40. Nh4 $1 $16 {[%cal Rh4g6]} Qh7 41. Bc2) 40... fxe5 $11 {[%emt 0:00:00]} 41. Bc2 {[%emt 0:01:32]} Rxf1+ {[%emt 0:04:31] The position is equal.} 42. Rxf1 {[%emt 0:00:01]} Rxf1+ {[%emt 0:00:08]} 43. Kxf1 {[%emt 0:54:10]} Ne8 {[%emt 0:00:35]} 44. Bg5 {[%emt 0:00:00]} Nf6 {[%emt 0:01:15]} 45. Bxf6 {[%emt 0:00:00]} Qxf6+ {[%emt 0:50:40]} 46. Qf2 {[%emt 0:01:30]} Kg7 {[%emt 0:00:00] Threatening ...Qf4.} 47. Qxf6+ {[%emt 0:00:00] Weighted Error Value: White=0.37/Black=0.33} 1/2-1/2

[Event "Italian-ch Semifinal 2022"]
[Site "Acqui Terme"]
[Date "2022.06.18"]
[Round "8.8"]
[White "Pegno, Mattia"]
[Black "Hercegovac, Neven"]
[Result "0-1"]
[ECO "A57"]
[WhiteElo "2065"]
[BlackElo "2155"]
[Annotator "TA"]
[PlyCount "82"]
[EventDate "2022.06.15"]
[EventType "swiss"]
[EventCountry "ITA"]
[SourceTitle "playchess.com"]
[Source "ChessBase"]
[SourceQuality "1"]
[TimeControl "40/5400+30:1800+30"]

{[%evp 9,82,15,15,19,16,0,15,33,23,38,63,37,47,4,66,45,147,0,107,103,117,98,97,91,125,122,141,125,147,-26,-37,-41,-25,-31,-33,-28,-22,-23,0,0,0,-21,-39,-120,-102,-148,-129,-132,-147,-129,-106,-227,-219,-806,-774,-5352,-5018,-1785,-1275,-1030,-897,-29998,-1813,-1693,-1680,-29979,-29979,-29985,-29986,-29992,-29993,-29993,-29982,-29981,-2378]} 1. d4 {[%emt 0:00:03]} Nf6 {[%emt 0:00:05]} 2. c4 {[%emt 0:00:07]} c5 {[%emt 0:00:32]} 3. d5 {[%emt 0:00:07]} b5 {[%emt 0:00:04]} 4. Qc2 {[%emt 0:00:05]} e6 {[%emt 0:02:59]} 5. e4 {[%emt 0:00:15]} bxc4 {[%emt 0:00:35]} 6. Nc3 {[%emt 0:00:42] A57: Benko/Volga Gambit.} exd5 {[%emt 0:02:16]} 7. e5 {[%emt 0:05:57]} Bb7 {[%emt 0:33:50]} 8. exf6 {[%emt 0:01:19] The position is equal.} Qxf6 {[%emt 0:00:51]} 9. Nh3 {[%emt 0:11:53] [#]} Na6 $146 {[%emt 0:05:26]} ({Predecessor:} 9... Be7 10. Be2 d4 11. O-O d3 12. Bxd3 cxd3 13. Qxd3 O-O 14. Re1 Qc6 15. Nf4 Bd6 {½-½ (62) Matlakov,M (2707)-Kanmazalp,O (2473) Batumi 2018}) 10. Qe2+ {[%emt 0:57:11]} Qe7 {[%emt 0:04:05]} 11. Nf4 {[%emt 0:03:51] Threatens to win with Qxe7+.} (11. Nb5 $5 {[%cal Rb5d6]} Qxe2+ 12. Bxe2 $14) 11... Nb4 {[%emt 0:00:54]} (11... Nc7 $11) 12. Kd1 $14 {[%emt 0:01:04]} g5 {[%emt 0:04:00]} (12... Qxe2+ $14 13. Bxe2 d4) 13. Nh5 {[%emt 0:01:57]} ({Only move:} 13. a3 $16) 13... O-O-O {[%emt 0:01:00]} (13... h6 $11) 14. a3 {[%emt 0:02:54]} Na6 {[%emt 0:02:16]} 15. Qxe7 {[%emt 0:01:20]} Bxe7 {[%emt 0:00:01]} 16. Ng3 {[%emt 0:00:40][%cal Bh5g3,Bg3f5,Bf5d6][%mdl 32]} Rhg8 {[%emt 0:20:14]} 17. Nf5 {[%emt 0:02:29]} Bf8 {[%emt 0:00:14]} 18. Nb5 {[%emt 0:01:18]} Rg6 {[%emt 0:00:17]} 19. Bxg5 $2 {[%emt 0:04:31]} Rxg5 $11 {[%emt 0:00:35]} 20. Nfd6+ {[%emt 0:00:05] Pair of Knights!} Kb8 {[%emt 0:02:40] White must now prevent ...Bxd6.} 21. Nxf7 {[%emt 0:00:05]} Be7 {[%emt 0:00:04] ...Bc6 is the strong threat.} 22. Nxd8 {[%emt 0:01:56]} Bxd8 {[%emt 0:00:01]} 23. Nd6 $1 {[%emt 0:00:43]} Bf6 {[%emt 0:01:12]} 24. Nxb7 {[%emt 0:01:14]} Kxb7 {[%emt 0:00:01]} 25. Kc2 {[%emt 0:00:28]} Nc7 $36 {[%emt 0:00:32][%mdl 3072] Black has compensation. Black fights for an advantage.} 26. f4 {[%emt 0:00:42]} (26. Re1 $15) 26... Rg8 $17 {[%emt 0:00:30]} 27. Rd1 {[%emt 0:00:24]} ({White should try} 27. g3) 27... Kc6 {[%emt 0:00:19]} 28. g3 {[%emt 0:00:36]} Rb8 {[%emt 0:00:21]} 29. Rb1 {[%emt 0:00:32]} Re8 {[%emt 0:00:16] 0x0.00207b667a26dp-1022s more active pieces.} 30. Kd2 {[%emt 0:00:29] [#] Loses the game.} (30. Kc1 $17 {keeps fighting.}) 30... Nb5 $1 $19 {[%emt 0:01:11][%cal Of6b2]} 31. Bg2 $2 {[%emt 0:00:29] [#]} (31. Kd1) 31... Bxb2 $1 {[%emt 0:00:24][%mdl 512] aiming for ...c3+.} 32. a4 {[%emt 0:00:32]} (32. Bf1 c3+) 32... c3+ {[%emt 0:00:11]} 33. Kc2 {[%emt 0:00:30]} Nd4+ {[%emt 0:00:38]} 34. Kd3 {[%emt 0:00:30]} Re2 {[%emt 0:00:40]} 35. Bf1 {[%emt 0:00:30]} Re4 {[%emt 0:00:26]} (35... c4+ $142 36. Kxd4 Re4#) 36. Rxb2 {[%emt 0:00:29]} cxb2 {[%emt 0:00:07] KRB-KRN} 37. Bg2 {[%emt 0:00:27]} Re2 {[%emt 0:00:37] Black mates.} 38. Bf3 {[%emt 0:00:31] [#]} Rxh2 $3 {[%emt 0:00:21][%mdl 512]} 39. Rxh2 {[%emt 0:00:34]} (39. Rd1 Nxf3) 39... b1=Q+ {[%emt 0:00:10]} 40. Ke3 {[%emt 0:00:00]} Nxf3 {[%emt 0:00:00]} 41. Kxf3 {[%emt 0:00:52]} c4 {[%emt 0:00:44] Weighted Error Value: White=0.98/Black=0.44} 0-1

[Event "Italian-ch Semifinal 2022"]
[Site "Acqui Terme"]
[Date "2022.06.18"]
[Round "8.9"]
[White "Cocchi, Andrea"]
[Black "Perossa, Nicolas"]
[Result "1-0"]
[ECO "E61"]
[WhiteElo "2205"]
[BlackElo "2139"]
[Annotator "TA"]
[PlyCount "97"]
[EventDate "2022.06.15"]
[EventType "swiss"]
[EventCountry "ITA"]
[SourceTitle "playchess.com"]
[Source "ChessBase"]
[SourceQuality "1"]
[TimeControl "40/5400+30:1800+30"]

{[%evp 16,97,48,39,50,48,56,16,33,22,22,-6,79,70,77,78,94,93,133,144,137,139,168,157,248,261,230,250,229,191,191,116,113,113,203,129,157,114,116,109,102,86,94,93,98,79,150,159,689,682,610,619,1045,1012,919,943,973,968,949,945,1860,1108,1517,1489,1442,1365,1237,1116,1089,925,1334,1768,1757,1578,5256,3091,5414,5414,5152,5152,29977,1755,1267,803]} 1. Nf3 {[%emt 0:01:22] ChessBase II} Nf6 {[%emt 0:00:08]} 2. c4 {[%emt 0:00:17]} g6 {[%emt 0:00:13]} 3. Nc3 {[%emt 0:00:19]} Bg7 {[%emt 0:00:05]} 4. d4 {[%emt 0:00:43]} O-O {[%emt 0:00:12]} 5. Bf4 {[%emt 0:01:24]} d6 {[%emt 0:00:26]} 6. e3 {[%emt 0:00:13]} Nh5 {[%emt 0:02:57]} 7. Bg5 {[%emt 0:11:03]} h6 {[%emt 0:00:20]} 8. Bh4 {[%emt 0:00:10]} g5 {[%emt 0:00:17] [#]} 9. Nd2 $1 {[%emt 0:02:23]} Nf6 {[%emt 0:01:35] E61: King's Indian: Early deviations for White, including Smyslov System.} (9... Nf4 10. Bg3) 10. Bg3 {[%emt 0:00:10]} Bf5 {[%emt 0:02:56] [#]} 11. h3 $146 {[%emt 0:15:35]} ({Predecessor:} 11. h4 e6 12. hxg5 hxg5 13. Nf3 Nh7 14. Qb3 b6 15. O-O-O Nc6 16. Qa4 Ne7 17. e4 {1-0 (38) Khismatullin,D (2662)-Nevednichy,V (2534) Aix les Bains 2011 CBM 142 Extra [ChessBase II]}) 11... Re8 {[%emt 0:06:10] The position is equal.} 12. Nf3 {[%emt 0:02:09][%cal Bd2f3,Bf3d4,Bd4f5][%mdl 32]} Nc6 {[%emt 0:02:47]} 13. d5 {[%emt 0:14:02]} Nb8 {[%emt 0:05:19]} (13... Nb4 $11 14. Nd4 Bg6) 14. Nd4 $36 {[%emt 0:01:56][%mdl 2048] Black is under pressure.} Bg6 {[%emt 0:00:13]} 15. Bd3 {[%emt 0:00:12] aiming for Bxg6.} Bxd3 {[%emt 0:02:51]} 16. Qxd3 {[%emt 0:02:49]} e5 {[%emt 0:00:51]} 17. Nf5 {[%emt 0:15:42]} e4 {[%emt 0:03:20]} 18. Qe2 {[%emt 0:01:52] 0x0.00207b7f00abdp-1022s more active pieces. The black rooks are badly placed.} Na6 {[%emt 0:02:47][%cal Bb8a6,Ba6c5,Bc5d3][%mdl 32]} 19. f4 {[%emt 0:02:30]} Qd7 {[%emt 0:17:13]} (19... exf3 $16 20. Qxf3 Bf8) 20. Nxg7 $18 {[%emt 0:01:30]} Kxg7 {[%emt 0:00:31]} 21. fxg5 {[%emt 0:00:39]} hxg5 {[%emt 0:00:20]} 22. O-O-O {[%emt 0:03:17]} Nc5 {[%emt 0:01:53]} 23. Rhf1 {[%emt 0:01:15]} (23. Kb1 $18) 23... Nd3+ $16 {[%emt 0:06:41]} 24. Kb1 {[%emt 0:00:21]} b5 {[%emt 0:17:29]} (24... a6 $16 {was necessary.}) 25. Nxb5 {[%emt 0:12:00] Threatens to win with Nd4.} Nxd5 {[%emt 0:01:52][%cal Oa8b8]} 26. cxd5 {[%emt 0:05:23]} ({Don't do} 26. Qh5 f6 $1 $16) 26... Qxb5 {[%emt 0:00:14]} 27. Be1 {[%emt 0:00:06] And now Bc3+ would win.} Qxd5 {[%emt 0:08:18]} 28. Qg4 {[%emt 0:01:01] Hoping for Bc3+.} f6 {[%emt 0:02:30]} (28... Qe5 $2 29. Bc3 Re6 30. Qxg5+ Kf8 31. Bxe5 $18) 29. Bc3 {[%emt 0:00:21]} Re5 {[%emt 0:02:15]} 30. Qd7+ {[%emt 0:01:43]} Kg6 {[%emt 0:01:33]} (30... Qf7 $142 31. Qxf7+ Kxf7) 31. h4 {[%emt 0:00:10] Really sharp!} gxh4 {[%emt 0:01:21] [#] Loses the game.} (31... Qe6 $16 32. h5+ (32. Qxc7 Rc5 $16) 32... Kh6) 32. Qg4+ $1 $18 {[%emt 0:00:14]} Kf7 {[%emt 0:01:17]} 33. Qxh4 {[%emt 0:00:33]} f5 {[%emt 0:00:44]} 34. Qh7+ {[%emt 0:00:20][%mdl 64] Skewer} Ke6 {[%emt 0:00:05]} 35. g4 {[%emt 0:01:02]} Rf8 {[%emt 0:00:55]} 36. Qxc7 {[%emt 0:01:32] Rh1 is the strong threat.} Qb5 {[%emt 0:09:13]} 37. Rh1 {[%emt 0:01:15] Threatening mate with Rh6+.} Rf6 {[%emt 0:00:36] Prevents Rh6.} 38. Qg7 {[%emt 0:00:50]} Qd7 {[%emt 0:00:28]} 39. Qg8+ {[%emt 0:00:33]} Qf7 {[%emt 0:00:12]} 40. Qc8+ {[%emt 0:00:00]} Qd7 {[%emt 0:00:00]} 41. Qc4+ {[%emt 0:03:58]} d5 {[%emt 0:03:27]} 42. Qd4 {[%emt 0:02:36]} Qc7 {[%emt 0:00:40]} 43. g5 {[%emt 0:05:39][%cal Bg4g5,Bg5h6,Bh6g7][%mdl 32]} Rg6 {[%emt 0:02:16]} 44. Rh6 {[%emt 0:00:40]} Rxh6 {[%emt 0:02:18]} 45. gxh6 {[%emt 0:00:02] Strongly threatening Rxd3.} f4 {[%emt 0:00:55]} 46. Rxd3 {[%emt 0:01:31]} Rf5 {[%emt 0:00:07]} 47. Rd1 {[%emt 0:02:29] White threatens Qh8 and mate.} f3 {[%emt 0:00:11]} 48. Qg7 {[%emt 0:01:35]} (48. Qh8 $142 Qf7 49. Qc8+ Qd7 50. Qg8+ Qf7 51. h7 Kd7 52. h8=Q Qxg8 53. Qxg8) 48... Qxg7 {[%emt 0:00:16]} 49. hxg7 {[%emt 0:02:54] Weighted Error Value: White=0.13 (very precise) /Black=0.67} 1-0